fUSD/lending_fUSD_20250123
["ID","MTS","AMOUNT","RATE_DAILY","PERIOD"]
[350068571,1737598255862,-500.0,0.0002,2]
[350068572,1737598255871,-500.0,0.0002,2]
[350068573,1737598255880,-2807.93,0.0002,2]
[350068574,1737598255891,-383.35852617,0.0002,2]
[350068575,1737598255900,-1009.59,0.0002,2]
[350068576,1737598255909,-568.7324072,0.0002,2]
[350068577,1737598255919,-501.49,0.0002,2]
[350068578,1737598255928,-1169.11,0.0002,2]
[350068579,1737598255937,-500.0,0.0002,2]
[350068580,1737598255946,-636.54,0.0002,2]
[350068581,1737598255956,-958.43,0.0002,2]
[350068582,1737598255965,-544.56,0.0002,2]
[350068583,1737598255975,-580.23,0.0002,2]
[350068584,1737598255984,-1894.86,0.0002,2]
[350068585,1737598255994,-1614.96,0.0002,2]
[350068586,1737598256008,-500.0,0.0002,2]
[350068587,1737598256018,-500.0,0.0002,2]
[350068588,1737598256029,-516.19809951,0.0002,2]
[350068589,1737598256041,-500.0,0.0002,2]
[350068590,1737598256051,-1825.68,0.0002,2]
[350068591,1737598256061,-500.0,0.0002,2]
[350068592,1737598256070,-1665.25,0.0002,2]
[350068593,1737598256081,-1562.79,0.0002,2]
[350068594,1737598256091,-781.49,0.0002,2]
[350068595,1737598256102,-3410.84,0.0002,2]
[350068596,1737598256112,-521.94,0.0002,2]
[350068597,1737598256123,-715.04,0.0002,2]
[350068598,1737598256134,-828.54,0.0002,2]
[350068599,1737598256145,-1023.25,0.0002,2]
[350068600,1737598256155,-1545.44,0.0002,2]
[350068601,1737598256166,-999.21,0.0002,2]
[350068602,1737598256175,-595.45,0.0002,2]
[350068603,1737598256186,-500.0,0.0002,2]
[350068604,1737598256196,-941.03,0.0002,2]
[350068605,1737598256206,-1139.26,0.0002,2]
[350068606,1737598256216,-1436.85,0.0002,2]
[350068607,1737598256226,-1885.46,0.0002,2]
[350068608,1737598256236,-500.0,0.0002,2]
[350068609,1737598256247,-500.0,0.0002,2]
[350068610,1737598256261,-508.75,0.0002,2]
[350068611,1737598256272,-697.25,0.0002,2]
[350068612,1737598256283,-1204.01,0.0002,2]
[350068613,1737598256294,-1170.11,0.0002,2]
[350068614,1737598256305,-2156.54,0.0002,2]
[350068615,1737598256316,-954.95,0.0002,2]
[350068616,1737598256327,-2857.56,0.0002,2]
[350068617,1737598256338,-500.0,0.0002,2]
[350068618,1737598256349,-500.0,0.0002,2]
[350068619,1737598256360,-500.0,0.0002,2]
[350068620,1737598256371,-1781.26,0.0002,2]
[350068621,1737598256383,-613.33,0.0002,2]
[350068622,1737598256394,-500.0,0.0002,2]
[350068623,1737598256405,-832.7,0.0002,2]
[350068624,1737598256418,-1000.0,0.0002,2]
[350068625,1737598256429,-709.55,0.0002,2]
[350068626,1737598256440,-534.8,0.0002,2]
[350068627,1737598256452,-1002.47,0.0002,2]
[350068628,1737598256463,-902.21,0.0002,2]
[350068629,1737598256474,-857.13,0.0002,2]
[350068630,1737598256485,-500.0,0.0002,2]
[350068631,1737598256495,-825.39,0.0002,2]
[350068632,1737598256509,-1658.23,0.0002,2]
[350068633,1737598256524,-500.0,0.0002,2]
[350068634,1737598256536,-500.0,0.0002,2]
[350068635,1737598256548,-1634.67,0.0002,2]
[350068636,1737598256558,-553.31,0.0002,2]
[350068637,1737598256569,-500.0,0.0002,2]
[350068638,1737598256580,-1490.03,0.0002,2]
[350068639,1737598256591,-500.0,0.0002,2]
[350068640,1737598256602,-500.0,0.0002,2]
[350068641,1737598256613,-2233.11,0.0002,2]
[350068642,1737598256628,-1027.05,0.0002,2]
[350068643,1737598256641,-770.23,0.0002,2]
[350068644,1737598256652,-520.02,0.0002,2]
[350068645,1737598256664,-500.0,0.0002,2]
[350068646,1737598256675,-1698.92,0.0002,2]
[350068647,1737598256686,-500.0,0.0002,2]
[350068648,1737598256697,-500.0,0.0002,2]
[350068649,1737598256708,-683.74,0.0002,2]
[350068650,1737598256719,-500.0,0.0002,2]
[350068651,1737598256731,-500.0,0.0002,2]
[350068652,1737598256742,-1618.77,0.0002,2]
[350068653,1737598256756,-500.0,0.0002,2]
[350068654,1737598256768,-1198.6,0.0002,2]
[350068655,1737598256779,-500.0,0.0002,2]
[350068656,1737598256790,-500.0,0.0002,2]
[350068657,1737598256801,-661.89,0.0002,2]
[350068658,1737598256813,-500.0,0.0002,2]
[350068659,1737598256824,-2270.26,0.0002,2]
[350068660,1737598256836,-638.8,0.0002,2]
[350068661,1737598256847,-500.0,0.0002,2]
[350068662,1737598256858,-500.0,0.0002,2]
[350068663,1737598256869,-500.0,0.0002,2]
[350068664,1737598256879,-500.0,0.0002,2]
[350068665,1737598256892,-500.0,0.0002,2]
[350068666,1737598256903,-500.0,0.0002,2]
[350068667,1737598256914,-500.0,0.0002,2]
[350068668,1737598256925,-1043.82,0.0002,2]
[350068669,1737598256938,-905.62,0.0002,2]
[350068670,1737598256950,-500.0,0.0002,2]
[350068671,1737598256961,-500.0,0.0002,2]
[350068672,1737598256973,-500.0,0.0002,2]
[350068673,1737598256984,-624.19,0.0002,2]
[350068674,1737598256995,-795.77,0.0002,2]
[350068675,1737598257010,-500.0,0.0002,2]
[350068676,1737598257021,-500.0,0.0002,2]
[350068677,1737598257032,-500.0,0.0002,2]
[350068678,1737598257045,-500.0,0.0002,2]
[350068679,1737598257057,-500.0,0.0002,2]
[350068680,1737598257069,-500.0,0.0002,2]
[350068681,1737598257080,-1966.42,0.0002,2]
[350068682,1737598257091,-652.67,0.0002,2]
[350068683,1737598257102,-1474.72,0.0002,2]
[350068684,1737598257112,-500.0,0.0002,2]
[350068685,1737598257122,-839.45,0.0002,2]
[350068686,1737598257134,-1114.82,0.0002,2]
[350068687,1737598257146,-695.67,0.0002,2]
[350068688,1737598257157,-500.0,0.0002,2]
[350068689,1737598257167,-500.0,0.0002,2]
[350068690,1737598257178,-780.12,0.0002,2]
[350068691,1737598257191,-1160.06,0.0002,2]
[350068692,1737598257202,-500.0,0.0002,2]
[350068693,1737598257214,-500.0,0.0002,2]
[350068694,1737598257224,-500.0,0.0002,2]
[350068695,1737598257235,-1941.87,0.0002,2]
[350068696,1737598257252,-500.0,0.0002,2]
[350068697,1737598257267,-629.0,0.0002,2]
[350068698,1737598257278,-500.0,0.0002,2]
[350068699,1737598257290,-4001.85684245,0.00020019,2]
[350068700,1737598257301,-175.87843106,0.00020019,2]
[350068701,1737598257312,-1951.20416786,0.00020038,2]
[350068702,1737598257324,-12517.52,0.00020065,2]
[350068703,1737598257334,-2505.01,0.00020087,2]
[350068704,1737598257345,-1951.20416786,0.00020141,2]
[350068705,1737598257357,-12517.53,0.00020172,2]
[350068706,1737598257369,-1951.20416786,0.00020245,2]
[350068707,1737598257380,-256.16,0.00020262,2]
[350068708,1737598257391,-1031.87663007,0.00020272,2]
[350068709,1737598257402,-175.77195228,0.00020272,2]
[350068710,1737598257412,-464.187533,0.00020273,2]
[350068711,1737598257425,-500.0,0.00020273,2]
[350068712,1737598257436,-500.0,0.00020273,2]
[350068713,1737598257447,-500.0,0.00020273,2]
[350068714,1737598257459,-500.0,0.00020273,2]
[350068715,1737598257470,-448.25047947,0.00020273,2]
[350068716,1737598257480,-642.63115681,0.00020273,2]
[350068717,1737598257491,-500.0,0.00020273,2]
[350068718,1737598257506,-500.0,0.00020273,2]
[350068719,1737598257518,-500.0,0.00020273,2]
[350068720,1737598257530,-532.52,0.00020273,2]
[350068721,1737598257540,-500.0,0.00020273,2]
[350068722,1737598257551,-500.0,0.00020273,2]
[350068723,1737598257566,-500.0,0.00020273,2]
[350068724,1737598257578,-1208.62,0.00020273,2]
[350068725,1737598257589,-520.18016979,0.00020273,2]
[350068726,1737598257599,-500.0,0.00020273,2]
[350068727,1737598257611,-500.0,0.00020273,2]
[350068728,1737598257621,-226.46838729,0.00020273,2]
[350068729,1737598257632,-500.0,0.00020273,2]
[350068730,1737598257643,-500.0,0.00020273,2]
[350068731,1737598257654,-500.0,0.00020273,2]
[350068732,1737598257671,-500.0,0.00020273,2]
[350068733,1737598257682,-437.82,0.00020273,2]
[350068734,1737598257694,-500.0,0.00020273,2]
[350068735,1737598257705,-500.0,0.00020273,2]
[350068736,1737598257716,-500.0,0.00020273,2]
[350068737,1737598257727,-500.0,0.00020273,2]
[350068738,1737598257739,-500.0,0.00020273,2]
[350068739,1737598257756,-500.0,0.00020273,2]
[350068740,1737598257772,-513.90115436,0.00020273,2]
[350068741,1737598257783,-500.0,0.00020273,2]
[350068742,1737598257795,-500.0,0.00020273,2]
[350068743,1737598257805,-500.0,0.00020273,2]
[350068744,1737598257816,-295.4002146,0.00020273,2]
[350068745,1737598257827,-500.0,0.00020273,2]
[350068746,1737598257839,-500.0,0.00020273,2]
[350068747,1737598257849,-500.0,0.00020273,2]
[350068748,1737598257859,-591.65,0.00020273,2]
[350068749,1737598257870,-500.0,0.00020273,2]
[350068750,1737598257883,-598.59,0.00020273,2]
[350068751,1737598257895,-500.0,0.00020273,2]
[350068752,1737598257905,-500.0,0.00020273,2]
[350068753,1737598257917,-500.0,0.00020273,2]
[350068754,1737598257928,-511.06,0.00020273,2]
[350068755,1737598257938,-500.0,0.00020273,2]
[350068756,1737598257949,-500.0,0.00020273,2]
[350068757,1737598257959,-500.0,0.00020273,2]
[350068758,1737598257970,-500.0,0.00020273,2]
[350068759,1737598257982,-500.0,0.00020273,2]
[350068760,1737598257993,-500.0,0.00020273,2]
[350068761,1737598258005,-626.68,0.00020273,2]
[350068762,1737598258016,-404.3520618,0.00020273,2]
[350068763,1737598258027,-569.54,0.00020273,2]
[350068764,1737598258038,-500.0,0.00020273,2]
[350068765,1737598258050,-500.0,0.00020273,2]
[350068766,1737598258062,-500.0,0.00020273,2]
[350068767,1737598258072,-669.91,0.00020273,2]
[350068768,1737598258086,-590.81,0.00020273,2]
[350068769,1737598258097,-500.0,0.00020273,2]
[350068770,1737598258108,-512.1262911,0.00020273,2]
[350068771,1737598258118,-581.94832535,0.00020273,2]
[350068772,1737598258129,-539.23,0.00020273,2]
[350068773,1737598258140,-500.0,0.00020273,2]
[350068774,1737598258151,-609.49,0.00020273,2]
[350068775,1737598258161,-652.2,0.00020273,2]
[350068776,1737598258172,-500.0,0.00020273,2]
[350068777,1737598258182,-500.0,0.00020273,2]
[350068778,1737598258193,-500.0,0.00020273,2]
[350068779,1737598258204,-500.0,0.00020273,2]
[350068780,1737598258214,-500.0,0.00020273,2]
[350068781,1737598258224,-560.55,0.00020273,2]
[350068782,1737598258235,-500.0,0.00020273,2]
[350068783,1737598258245,-500.0,0.00020273,2]
[350068784,1737598258259,-500.0,0.00020273,2]
[350068785,1737598258269,-500.0,0.00020273,2]
[350068786,1737598258280,-500.0,0.00020273,2]
[350068787,1737598258293,-500.0,0.00020273,2]
[350068788,1737598258304,-585.91,0.00020273,2]
[350068789,1737598258314,-500.0,0.00020273,2]
[350068790,1737598258325,-500.0,0.00020273,2]
[350068791,1737598258335,-500.0,0.00020273,2]
[350068792,1737598258348,-500.0,0.00020273,2]
[350068793,1737598258360,-621.54776264,0.00020273,2]
[350068794,1737598258370,-366.31285764,0.00020273,2]
[350068795,1737598258531,-760.92,0.00020273,2]
[350068796,1737598258542,-500.0,0.00020273,2]
[350068797,1737598258552,-500.0,0.00020273,2]
[350068798,1737598258566,-500.0,0.00020273,2]
[350068799,1737598258577,-709.5,0.00020273,2]
[350068800,1737598258587,-500.0,0.00020273,2]
[350068801,1737598258598,-500.0,0.00020273,2]
[350068802,1737598258609,-783.44,0.00020273,2]
[350068803,1737598258619,-500.0,0.00020273,2]
[350068804,1737598258629,-734.61,0.00020273,2]
[350068805,1737598258639,-983.91,0.00020273,2]
[350068806,1737598258648,-500.0,0.00020273,2]
[350068807,1737598258658,-501.93888836,0.00020273,2]
[350068808,1737598258668,-1021.08,0.00020273,2]
[350068809,1737598258677,-595.13,0.00020273,2]
[350068810,1737598258687,-1861.17,0.00020273,2]
[350068811,1737598258696,-500.0,0.00020273,2]
[350068812,1737598258705,-2273.74,0.00020273,2]
[350068813,1737598258716,-500.0,0.00020273,2]
[350068814,1737598258725,-926.57,0.00020273,2]
[350068815,1737598258734,-500.0,0.00020273,2]
[350068816,1737598258743,-500.0,0.00020273,2]
[350068817,1737598258755,-4005.95,0.00020273,2]
[350068818,1737598258765,-500.0,0.00020273,2]
[350068819,1737598258774,-934.73,0.00020273,2]
[350068820,1737598258784,-500.0,0.00020273,2]
[350068821,1737598258794,-1366.9,0.00020273,2]
[350068822,1737598258803,-638.91,0.00020273,2]
[350068823,1737598258813,-500.0,0.00020273,2]
[350068824,1737598258823,-500.0,0.00020273,2]
[350068825,1737598258833,-701.57,0.00020273,2]
[350068826,1737598258843,-500.0,0.00020273,2]
[350068827,1737598258853,-780.6,0.00020273,2]
[350068828,1737598258863,-1079.5,0.00020273,2]
[350068829,1737598258872,-500.0,0.00020273,2]
[350068830,1737598258882,-500.0,0.00020273,2]
[350068831,1737598258892,-2807.93,0.00020273,2]
[350068832,1737598258901,-1009.59,0.00020273,2]
[350068833,1737598258911,-501.49,0.00020273,2]
[350068834,1737598258921,-1169.11,0.00020273,2]
[350068835,1737598258930,-500.0,0.00020273,2]
[350068836,1737598258940,-636.54,0.00020273,2]
[350068837,1737598258950,-958.43,0.00020273,2]
[350068838,1737598258960,-544.56,0.00020273,2]
[350068839,1737598258969,-580.23,0.00020273,2]
[350068840,1737598258979,-1894.86,0.00020273,2]
[350068841,1737598258989,-1614.96,0.00020273,2]
[350068842,1737598258998,-500.0,0.00020273,2]
[350068843,1737598259010,-500.0,0.00020273,2]
[350068844,1737598259019,-1825.68,0.00020273,2]
[350068845,1737598259028,-500.0,0.00020273,2]
[350068846,1737598259039,-1665.25,0.00020273,2]
[350068847,1737598259048,-1562.79,0.00020273,2]
[350068848,1737598259057,-781.49,0.00020273,2]
[350068849,1737598259067,-3410.84,0.00020273,2]
[350068850,1737598259077,-521.94,0.00020273,2]
[350068851,1737598259086,-715.04,0.00020273,2]
[350068852,1737598259095,-828.54,0.00020273,2]
[350068853,1737598259105,-1023.25,0.00020273,2]
[350068854,1737598259115,-1545.44,0.00020273,2]
[350068855,1737598259124,-999.21,0.00020273,2]
[350068856,1737598259133,-595.45,0.00020273,2]
[350068857,1737598259143,-500.0,0.00020273,2]
[350068858,1737598259152,-941.03,0.00020273,2]
[350068859,1737598259162,-1139.26,0.00020273,2]
[350068860,1737598259173,-1436.85,0.00020273,2]
[350068861,1737598259184,-1885.46,0.00020273,2]
[350068862,1737598259194,-500.0,0.00020273,2]
[350068863,1737598259205,-500.0,0.00020273,2]
[350068864,1737598259215,-508.75,0.00020273,2]
[350068865,1737598259225,-697.25,0.00020273,2]
[350068866,1737598259235,-1204.01,0.00020273,2]
[350068867,1737598259245,-1170.11,0.00020273,2]
[350068868,1737598259259,-2156.54,0.00020273,2]
[350068869,1737598259271,-954.95,0.00020273,2]
[350068870,1737598259281,-2857.56,0.00020273,2]
[350068871,1737598259291,-500.0,0.00020273,2]
[350068872,1737598259301,-500.0,0.00020273,2]
[350068873,1737598259311,-500.0,0.00020273,2]
[350068874,1737598259321,-1781.26,0.00020273,2]
[350068875,1737598259331,-613.33,0.00020273,2]
[350068876,1737598259341,-500.0,0.00020273,2]
[350068877,1737598259351,-832.7,0.00020273,2]
[350068878,1737598259361,-1000.0,0.00020273,2]
[350068879,1737598259370,-709.55,0.00020273,2]
[350068880,1737598259380,-534.8,0.00020273,2]
[350068881,1737598259390,-1002.47,0.00020273,2]
[350068882,1737598259400,-902.21,0.00020273,2]
[350068883,1737598259410,-857.13,0.00020273,2]
[350068884,1737598259420,-500.0,0.00020273,2]
[350068885,1737598259430,-825.39,0.00020273,2]
[350068886,1737598259440,-1658.23,0.00020273,2]
[350068887,1737598259449,-500.0,0.00020273,2]
[350068888,1737598259459,-1634.67,0.00020273,2]
[350068889,1737598259468,-553.31,0.00020273,2]
[350068890,1737598259478,-500.0,0.00020273,2]
[350068891,1737598259488,-1490.03,0.00020273,2]
[350068892,1737598259497,-500.0,0.00020273,2]
[350068893,1737598259513,-500.0,0.00020273,2]
[350068894,1737598259525,-2233.11,0.00020273,2]
[350068895,1737598259534,-1027.05,0.00020273,2]
[350068896,1737598259544,-770.23,0.00020273,2]
[350068897,1737598259554,-520.02,0.00020273,2]
[350068898,1737598259568,-500.0,0.00020273,2]
[350068899,1737598259578,-1698.92,0.00020273,2]
[350068900,1737598259587,-480.0,0.00020273,2]
[350068901,1737598259597,-683.74,0.00020273,2]
[350068902,1737598259607,-500.0,0.00020273,2]
[350068903,1737598259616,-500.0,0.00020273,2]
[350068904,1737598259626,-1618.77,0.00020273,2]
[350068905,1737598259636,-500.0,0.00020273,2]
[350068906,1737598259647,-500.0,0.00020273,2]
[350068907,1737598259657,-1198.6,0.00020273,2]
[350068908,1737598259666,-500.0,0.00020273,2]
[350068909,1737598259676,-661.89,0.00020273,2]
[350068910,1737598259685,-500.0,0.00020273,2]
[350068911,1737598259694,-2270.26,0.00020273,2]
[350068912,1737598259704,-638.8,0.00020273,2]
[350068913,1737598259713,-500.0,0.00020273,2]
[350068914,1737598259722,-500.0,0.00020273,2]
[350068915,1737598259731,-500.0,0.00020273,2]
[350068916,1737598259741,-500.0,0.00020273,2]
[350068917,1737598259750,-500.0,0.00020273,2]
[350068918,1737598259764,-500.0,0.00020273,2]
[350068919,1737598259773,-500.0,0.00020273,2]
[350068920,1737598259783,-1043.82,0.00020273,2]
[350068921,1737598259792,-905.62,0.00020273,2]
[350068922,1737598259802,-500.0,0.00020273,2]
[350068923,1737598259811,-500.0,0.00020273,2]
[350068924,1737598259820,-624.19,0.00020273,2]
[350068925,1737598259829,-795.77,0.00020273,2]
[350068926,1737598259838,-500.0,0.00020273,2]
[350068927,1737598259847,-500.0,0.00020273,2]
[350068928,1737598259858,-500.0,0.00020273,2]
[350068929,1737598259867,-500.0,0.00020273,2]
[350068930,1737598259877,-500.0,0.00020273,2]
[350068931,1737598259886,-1966.42,0.00020273,2]
[350068932,1737598259896,-652.67,0.00020273,2]
[350068933,1737598259906,-1474.72,0.00020273,2]
[350068934,1737598259917,-500.0,0.00020273,2]
[350068935,1737598259927,-839.45,0.00020273,2]
[350068936,1737598259937,-1114.82,0.00020273,2]
[350068937,1737598259947,-695.67,0.00020273,2]
[350068938,1737598259957,-500.0,0.00020273,2]
[350068939,1737598259967,-500.0,0.00020273,2]
[350068940,1737598259977,-780.12,0.00020273,2]
[350068941,1737598259986,-1160.06,0.00020273,2]
[350068942,1737598259995,-500.0,0.00020273,2]
[350068943,1737598260007,-500.0,0.00020273,2]
[350068944,1737598260017,-500.0,0.00020273,2]
[350068945,1737598260027,-1941.87,0.00020273,2]
[350068946,1737598260036,-500.0,0.00020273,2]
[350068947,1737598260046,-629.0,0.00020273,2]
[350068948,1737598260055,-500.0,0.00020273,2]
[350068949,1737598260065,-4001.85684245,0.00020332,2]
[350068950,1737598260075,-94524.34100493,0.00020347,2]
[350068951,1737598260085,-1951.20416786,0.00020348,2]
[350068952,1737598260094,-682.3296,0.00020447,2]
[350068953,1737598260104,-4998.3173,0.00020447,2]
[350068954,1737598260113,-1951.20416786,0.00020452,2]
[350068955,1737598260122,-464.187533,0.00020547,2]
[350068956,1737598260132,-500.0,0.00020547,2]
[350068957,1737598260141,-500.0,0.00020547,2]
[350068958,1737598260151,-500.0,0.00020547,2]
[350068959,1737598260160,-500.0,0.00020547,2]
[350068960,1737598260169,-523.4173483,0.00020547,2]
[350068961,1737598260179,-532.52,0.00020547,2]
[350068962,1737598260188,-500.0,0.00020547,2]
[350068963,1737598260198,-500.0,0.00020547,2]
[350068964,1737598260207,-546.79540246,0.00020547,2]
[350068965,1737598260216,-1208.62,0.00020547,2]
[350068966,1737598260226,-500.0,0.00020547,2]
[350068967,1737598260235,-500.0,0.00020547,2]
[350068968,1737598260245,-575.56335264,0.00020547,2]
[350068969,1737598260256,-500.0,0.00020547,2]
[350068970,1737598260265,-500.0,0.00020547,2]
[350068971,1737598260275,-500.0,0.00020547,2]
[350068972,1737598260284,-500.0,0.00020547,2]
[350068973,1737598260293,-500.0,0.00020547,2]
[350068974,1737598260302,-500.0,0.00020547,2]
[350068975,1737598260311,-500.0,0.00020547,2]
[350068976,1737598260320,-500.0,0.00020547,2]
[350068977,1737598260329,-176.27176927,0.00020547,2]
[350068978,1737598260338,-500.0,0.00020547,2]
[350068979,1737598260347,-500.0,0.00020547,2]
[350068980,1737598260356,-500.0,0.00020547,2]
[350068981,1737598260366,-500.0,0.00020547,2]
[350068982,1737598260375,-591.65,0.00020547,2]
[350068983,1737598260383,-500.0,0.00020547,2]
[350068984,1737598260393,-598.59,0.00020547,2]
[350068985,1737598260402,-500.0,0.00020547,2]
[350068986,1737598260411,-500.0,0.00020547,2]
[350068987,1737598260420,-500.0,0.00020547,2]
[350068988,1737598260430,-511.06,0.00020547,2]
[350068989,1737598260439,-500.0,0.00020547,2]
[350068990,1737598260448,-524.24531474,0.00020547,2]
[350068991,1737598260457,-500.0,0.00020547,2]
[350068992,1737598260467,-500.0,0.00020547,2]
[350068993,1737598260477,-500.0,0.00020547,2]
[350068994,1737598260486,-500.0,0.00020547,2]
[350068995,1737598260495,-626.68,0.00020547,2]
[350068996,1737598260504,-569.54,0.00020547,2]
[350068997,1737598260517,-500.0,0.00020547,2]
[350068998,1737598260528,-500.0,0.00020547,2]
[350068999,1737598260537,-500.0,0.00020547,2]
[350069000,1737598260546,-669.91,0.00020547,2]
[350069001,1737598260556,-590.81,0.00020547,2]
[350069002,1737598260569,-500.0,0.00020547,2]
[350069003,1737598260579,-539.23,0.00020547,2]
[350069004,1737598260588,-500.0,0.00020547,2]
[350069005,1737598260596,-609.49,0.00020547,2]
[350069006,1737598260607,-652.2,0.00020547,2]
[350069007,1737598260616,-500.0,0.00020547,2]
[350069008,1737598260625,-500.0,0.00020547,2]
[350069009,1737598260634,-500.0,0.00020547,2]
[350069010,1737598260644,-500.0,0.00020547,2]
[350069011,1737598260654,-500.0,0.00020547,2]
[350069012,1737598260663,-560.55,0.00020547,2]
[350069013,1737598260674,-500.0,0.00020547,2]
[350069014,1737598260683,-418.38977052,0.00020547,2]
[350069015,1737598260692,-500.0,0.00020547,2]
[350069016,1737598260701,-500.0,0.00020547,2]
[350069017,1737598260710,-500.0,0.00020547,2]
[350069018,1737598260719,-500.0,0.00020547,2]
[350069019,1737598260728,-585.91,0.00020547,2]
[350069020,1737598260738,-500.0,0.00020547,2]
[350069021,1737598260747,-500.0,0.00020547,2]
[350069022,1737598260757,-500.0,0.00020547,2]
[350069023,1737598260766,-500.0,0.00020547,2]
[350069024,1737598260776,-760.92,0.00020547,2]
[350069025,1737598260785,-500.0,0.00020547,2]
[350069026,1737598260794,-500.0,0.00020547,2]
[350069027,1737598260803,-500.0,0.00020547,2]
[350069028,1737598260812,-709.5,0.00020547,2]
[350069029,1737598260821,-500.0,0.00020547,2]
[350069030,1737598260830,-500.0,0.00020547,2]
[350069031,1737598260840,-783.44,0.00020547,2]
[350069032,1737598260850,-500.0,0.00020547,2]
[350069033,1737598260861,-734.61,0.00020547,2]
[350069034,1737598260870,-983.91,0.00020547,2]
[350069035,1737598260879,-500.0,0.00020547,2]
[350069036,1737598260889,-1021.08,0.00020547,2]
[350069037,1737598260898,-595.13,0.00020547,2]
[350069038,1737598260907,-1861.17,0.00020547,2]
[350069039,1737598260917,-2273.74,0.00020547,2]
[350069040,1737598260927,-500.0,0.00020547,2]
[350069041,1737598260936,-926.57,0.00020547,2]
[350069042,1737598260946,-500.0,0.00020547,2]
[350069043,1737598260955,-500.0,0.00020547,2]
[350069044,1737598260965,-4005.95,0.00020547,2]
[350069045,1737598260974,-500.0,0.00020547,2]
[350069046,1737598260983,-934.73,0.00020547,2]
[350069047,1737598260992,-500.0,0.00020547,2]
[350069048,1737598261002,-1366.9,0.00020547,2]
[350069049,1737598261015,-638.91,0.00020547,2]
[350069050,1737598261024,-500.0,0.00020547,2]
[350069051,1737598261033,-500.0,0.00020547,2]
[350069052,1737598261042,-701.57,0.00020547,2]
[350069053,1737598261051,-500.0,0.00020547,2]
[350069054,1737598261060,-780.6,0.00020547,2]
[350069055,1737598261071,-1079.5,0.00020547,2]
[350069056,1737598261080,-500.0,0.00020547,2]
[350069057,1737598261089,-500.0,0.00020547,2]
[350069058,1737598261099,-2807.93,0.00020547,2]
[350069059,1737598261108,-1009.59,0.00020547,2]
[350069060,1737598261117,-501.49,0.00020547,2]
[350069061,1737598261126,-1169.11,0.00020547,2]
[350069062,1737598261136,-500.0,0.00020547,2]
[350069063,1737598261145,-636.54,0.00020547,2]
[350069064,1737598261154,-958.43,0.00020547,2]
[350069065,1737598261283,-544.56,0.00020547,2]
[350069066,1737598261293,-580.23,0.00020547,2]
[350069067,1737598261302,-1894.86,0.00020547,2]
[350069068,1737598261311,-1614.96,0.00020547,2]
[350069069,1737598261321,-500.0,0.00020547,2]
[350069070,1737598261331,-470.13,0.00020547,2]